fUSD/lending_fUSD_20251025
["ID","MTS","AMOUNT","RATE_DAILY","PERIOD"]
[392341659,1761367833238,-2500.0,0.00022001,2]
[392341660,1761367833247,-2500.0,0.00022001,2]
[392341661,1761367833257,-2500.0,0.00022001,2]
[392341662,1761367833266,-2500.0,0.00022001,2]
[392341663,1761367833276,-2507.37271807,0.00022001,2]
[392341664,1761367833285,-197.00341659,0.00022001,2]
[392341665,1761367833295,-1566.41,0.00022225,2]
[392341666,1761367833305,-785.2192866,0.00022659,2]
[392341667,1761367833314,-166.15,0.0002269,2]
[392341668,1761367833324,-400.0,0.00023094,2]
[392341669,1761367833333,-1566.41,0.00023114,2]
[392341670,1761367833342,-166.66,0.00023146,30]
[392341671,1761367833351,-420.0,0.00023162,2]
[392341672,1761367833361,-166.66,0.00023183,2]
[392341673,1761367833370,-433.98884286,0.00023298,2]
[392341674,1761367833380,-25089.55,0.0002358,2]
[392341675,1761367833389,-3456.27,0.0002358,2]
[392341676,1761367833399,-166.66,0.00023633,30]
[392341677,1761367833408,-9640.89799779,0.00023793,2]
[392341678,1761367833418,-166.15,0.00023825,2]
[392341679,1761367833428,-687.42,0.00023857,2]
[392341680,1761367833437,-601.09661578,0.000239,2]
[392341681,1761367833446,-502.29595391,0.000239,2]
[392341682,1761367833456,-478.29593355,0.000239,2]
[392341683,1761367833465,-500.0,0.000239,2]
[392341684,1761367833474,-500.0,0.000239,2]
[392341685,1761367833484,-171.26380466,0.000239,2]
[392341686,1761367833493,-500.0,0.000239,2]
[392341687,1761367833503,-500.0,0.000239,2]
[392341688,1761367833513,-222.30536413,0.000239,2]
[392341689,1761367833522,-166.66,0.00023949,2]
[392341690,1761367833531,-1566.41,0.00024003,2]
[392341691,1761367833540,-166.66,0.0002412,30]
[392341692,1761367833549,-687.42,0.00024131,2]
[392341693,1761367833558,-500.0,0.00024333,2]
[392341694,1761367833568,-500.0,0.00024333,2]
[392341695,1761367833577,-516.6096342,0.00024333,2]
[392341696,1761367833586,-502.81111038,0.00024333,2]
[392341697,1761367833595,-501.64826271,0.00024333,2]
[392341698,1761367833605,-687.42,0.00024405,2]
[392341699,1761367833614,-962.31058477,0.00024448,2]
[392341700,1761367833624,-427.87696768,0.00024448,2]
[392341701,1761367833633,-1000.0,0.00024448,2]
[392341702,1761367833642,-500.0,0.00024448,2]
[392341703,1761367833652,-166.66,0.00024608,30]
[392341704,1761367833666,-687.42,0.00024679,2]
[392341705,1761367833675,-166.66,0.00024714,2]
[392341706,1761367833685,-904.00526626,0.00024881,2]
[392341707,1761367833694,-1000.0,0.00024881,2]
[392341708,1761367833703,-610.0,0.0002489,2]
[392341709,1761367833712,-1566.41,0.00024892,2]
[392341710,1761367833722,-687.42,0.00024953,2]
[392341711,1761367833731,-166.15,0.00024959,2]
[392341712,1761367833740,-166.66,0.00025095,30]
[392341713,1761367833750,-587.0,0.00025187,2]
[392341714,1761367833759,-687.4724119,0.00025227,2]
[392341715,1761367833768,-211.00603519,0.00025429,2]
[392341716,1761367833778,-166.66,0.00025479,2]
[392341717,1761367833788,-166.66,0.00025582,30]
[392341718,1761367833798,-1566.41,0.00025781,2]
[392341719,1761367833810,-1000.0,0.00025832,2]
[392341720,1761367833874,-166.15,0.00026094,2]
[392341721,1761367833884,-150.0,0.0002616,2]
[392341722,1761367833894,-166.66,0.00026245,2]
[392341723,1761367833903,-250.0,0.00026428,2]
[392341724,1761367833916,-1566.41,0.0002667,2]
[392341725,1761367833926,-166.66,0.0002701,2]
[392341726,1761367833936,-166.15,0.00027228,2]
[392341727,1761367833945,-5526.20234134,0.000273,2]
[392341728,1761367833955,-823.0,0.0002739,2]
[392341729,1761367833968,-300.0,0.00027397,2]
[392341730,1761367833977,-1566.41,0.00027559,2]
[392341731,1761367833987,-199.0,0.00027671,7]
[392341732,1761367833997,-324.12,0.00027945,8]
[392341733,1761367834006,-1566.41,0.00028448,2]
[392341734,1761367834015,-19501.03093917,0.000286,2]
[392341735,1761367834295,-13352.20712517,0.000286,2]
[392341736,1761367834307,-4434.76193566,0.000286,2]
[392341737,1761367834316,-1566.41,0.00029337,2]
[392341738,1761367834325,-347.83057016,0.00029338,2]
[392341739,1761367834335,-150.0,0.00029441,2]
[392341740,1761367834344,-5514.0,0.000295,3]
[392341741,1761367834354,-817.0,0.00029785,2]
[392341742,1761367834363,-151.16919271,0.00029944,15]
[392341743,1761367834373,-484.489,0.00030107,25]
[392341744,1761367834382,-304.61,0.00030137,30]
[392341745,1761367834392,-1566.41,0.00030226,2]
[392341746,1761367834402,-200.0,0.00030266,2]
[392341747,1761367834412,-5514.0,0.000304,5]
[392341748,1761367834422,-1566.41,0.00031115,2]
[392341749,1761367834432,-2000.0,0.000312,2]
[392341750,1761367834441,-151.16919267,0.00031689,15]
[392341751,1761367834451,-150.0,0.00031952,2]
[392341752,1761367834461,-1566.41,0.00032004,2]
[392341753,1761367834470,-623.45019799,0.00032172,2]
[392341754,1761367834480,-11624.89940628,0.00032863,2]
[392341777,1761367841842,-1.6e-07,0.00032863,2]
[392341778,1761367841865,-2686.13980026,0.00032863,2]
[392341779,1761367841875,-500.0,0.00032876,2]
[392341780,1761367841883,-500.0,0.00032876,2]
[392341781,1761367841892,-1566.41,0.00032894,2]
[392341782,1761367841902,-150.0,0.00033041,7]
[392341783,1761367841911,-150.0,0.00033041,7]
[392341784,1761367841920,-150.0,0.00033041,7]
[392341785,1761367841929,-150.0,0.00033041,7]
[392341786,1761367841940,-150.0,0.00033041,7]
[392341787,1761367841951,-150.0,0.00033041,7]
[392341788,1761367841962,-151.16919267,0.00033433,15]
[392341789,1761367841972,-150.0,0.00033481,2]
[392341790,1761367841982,-150.0,0.00033481,120]
[392341791,1761367841991,-150.0,0.00033653,7]
[392341792,1761367842001,-160.26400388,0.00033673,5]
[392341793,1761367842011,-287.42695031,0.00033673,2]
[392341794,1761367842019,-176.76056241,0.00033673,7]
[392341795,1761367842028,-42933.11762,0.00033677,2]
[392341796,1761367842037,-500.0,0.00033687,2]
[392341797,1761367842046,-128799.35286,0.00033687,2]
[392341798,1761367842055,-21607.6262594,0.00033687,2]
[392341799,1761367842065,-500.0,0.00033696,2]
[392341800,1761367842074,-14311.0392067,0.00033696,2]
[392341801,1761367842083,-128799.35286,0.00033697,2]
[392341802,1761367842092,-114211.7388,0.00033697,2]
[392341803,1761367842102,-164.96209114,0.00033697,2]
[392341804,1761367842113,-150.92,0.00033697,2]
[392341805,1761367842122,-700.0,0.000337,12]
[392341806,1761367842131,-151.0,0.00033704,14]
[392341807,1761367842140,-151.0,0.00033704,14]
[392341808,1761367842149,-500.0,0.00033706,2]
[392341809,1761367842158,-500.0,0.00033706,2]
[392341810,1761367842167,-500.0,0.00033706,2]
[392341811,1761367842176,-500.0,0.00033706,2]
[392341812,1761367842186,-929675.7404523,0.00033707,2]
[392341813,1761367842195,-506.95549091,0.00033773,5]
[392341814,1761367842205,-500.0,0.00033773,5]
[392341815,1761367842214,-502.73140897,0.00033773,5]
[392341816,1761367842224,-506.12573833,0.00033773,5]
[392341817,1761367842233,-500.0,0.00033773,5]
[392341818,1761367842243,-501.52199648,0.00033773,5]
[392341819,1761367842252,-503.42247773,0.00033773,5]
[392341820,1761367842262,-500.0,0.00033773,5]
[392341821,1761367842271,-200.0,0.00033773,5]
[392341822,1761367842280,-500.0,0.00033773,5]
[392341823,1761367842290,-500.0,0.00033773,5]
[392341824,1761367842299,-502.95869624,0.00033773,5]
[392341825,1761367842308,-500.25401788,0.00033773,5]
[392341826,1761367842317,-500.0,0.00033773,5]
[392341827,1761367842328,-162.66586174,0.00033773,5]
[392341828,1761367842337,-506.42563765,0.00033773,5]
[392341829,1761367842347,-1566.41,0.00033783,2]
[392341830,1761367842356,-500.0,0.00033785,2]
[392341831,1761367842366,-688.23,0.000338,14]
[392341832,1761367842376,-920.17,0.000338,30]
[392341833,1761367842386,-1500.0,0.000338,12]
[392341834,1761367842396,-2300.0,0.000339,12]
[392341835,1761367842406,-304.61,0.00034166,30]
[392341836,1761367842415,-150.0,0.00034265,7]
[392341837,1761367842425,-516.41951621,0.00034321,5]
[392341838,1761367842435,-504.58860067,0.00034321,5]
[392341839,1761367842445,-1000.0,0.00034321,5]
[392341840,1761367842456,-501.13924348,0.00034321,5]
[392341841,1761367842467,-362.70540564,0.00034321,5]
[392341842,1761367842476,-400.0,0.00034458,5]
[392341843,1761367842486,-476.4830027,0.00034561,2]
[392341844,1761367842496,-5000.0,0.00034748,2]
[392341845,1761367842510,-1500.0,0.00034868,5]
[392341846,1761367842519,-150.0,0.00034877,7]
[392341847,1761367842529,-2000.0,0.000349,2]
[392341848,1761367842539,-600.0,0.00035142,5]
[392341849,1761367842549,-151.16919267,0.00035178,15]
[392341850,1761367842558,-1190.10579216,0.00035255,3]
[392341851,1761367842567,-1190.10579216,0.00035255,3]
[392341852,1761367842576,-153.51215495,0.00035277,2]
[392341853,1761367842585,-181.4599326,0.00035277,2]
[392341854,1761367842595,-500.0,0.00035277,2]
[392341856,1761367842604,-500.0,0.00035277,2]
[392341858,1761367842613,-500.0,0.00035277,2]
[392341861,1761367842622,-607.93150947,0.00035277,2]
[392341862,1761367842631,-336.72249859,0.00035277,2]
[392341865,1761367842640,-1000.0,0.00035346,2]
[392341867,1761367842649,-500.0,0.00035374,30]
[392341868,1761367842659,-688.23,0.000354,14]
[392341869,1761367842668,-920.17,0.000354,30]
[392341870,1761367842677,-201.19302741,0.00035416,5]
[392341871,1761367842686,-150.0,0.00035489,7]
[392341872,1761367842695,-287.42695029,0.00035531,2]
[392341873,1761367842704,-1009.0,0.00035544,7]
[392341874,1761367842714,-1000.0,0.0003562,2]
[392341875,1761367842723,-920.47332656,0.00035719,8]
[392341876,1761367842732,-800.0,0.00035827,5]
[392341877,1761367842744,-3793.0,0.00035863,2]
[392341878,1761367842753,-500.0,0.00035885,30]
[392341880,1761367842763,-1000.0,0.00035894,2]
[392341881,1761367842772,-376.0,0.00035967,2]
[392341883,1761367842781,-314.400304,0.00036,3]
[392341885,1761367842792,-150.0,0.000361,7]
[392341886,1761367842801,-1000.0,0.00036168,2]
[392341887,1761367842810,-9999.99,0.00036261,2]
[392341888,1761367842819,-150.99,0.00036261,2]
[392341889,1761367842828,-822.0407102,0.00036265,2]
[392341890,1761367842837,-3971.0,0.0003629,7]
[392341891,1761367842846,-3793.0,0.00036403,7]
[392341893,1761367842855,-1000.0,0.00036442,2]
[392341895,1761367842864,-822.0407102,0.00036461,2]
[392341897,1761367842873,-688.23,0.000365,14]
[392341899,1761367842883,-920.17,0.000365,30]
[392341901,1761367842892,-970.42273977,0.000365,120]
[392341903,1761367842902,-1010.95553088,0.00036512,5]
[392341904,1761367842911,-169.0,0.00036533,30]
[392341905,1761367842921,-760.65841123,0.00036616,2]
[392341906,1761367842931,-924.39405687,0.00036655,2]
[392341907,1761367842940,-500.0,0.00036692,30]
[392341908,1761367842949,-946.31318,0.000367,22]
[392341909,1761367842959,-150.0,0.00036712,7]
[392341910,1761367842973,-157.51440232,0.00036712,7]
[392341911,1761367842983,-150.00000001,0.00036712,7]
[392341912,1761367842993,-157.2184677,0.00036712,7]
[392341913,1761367843003,-151.0,0.00036713,14]
[392341914,1761367843013,-483.7901493,0.00036715,2]
[392341915,1761367843023,-1000.0,0.00036716,2]
[392341916,1761367843033,-708969.036612,0.00036716,30]
[392341917,1761367843043,-205864.790661,0.00036716,30]
[392341918,1761367843055,-151.0,0.00036716,15]
[392341919,1761367843064,-151.0,0.00036716,30]
[392341920,1761367843073,-299.07155,0.00036716,30]
[392341921,1761367843082,-151.0,0.00036716,30]
[392341922,1761367843091,-153.459826,0.00036716,30]
[392341923,1761367843100,-151.0,0.00036716,30]
[392341924,1761367843110,-151.0,0.00036716,30]
[392341925,1761367843118,-151.0,0.00036716,30]
[392341926,1761367843127,-151.0,0.00036716,30]
[392341927,1761367843136,-151.0,0.00036716,30]
[392341928,1761367843145,-151.0,0.00036716,30]
[392341929,1761367843155,-151.0,0.00036716,30]
[392341930,1761367843164,-151.0,0.00036716,30]
[392341931,1761367843174,-151.0,0.00036716,30]
[392341932,1761367843183,-151.0,0.00036716,30]
[392341933,1761367843196,-151.0,0.00036716,30]
[392341934,1761367843205,-183.689176,0.00036716,30]
[392341935,1761367843214,-152.201517,0.00036716,30]
[392341936,1761367843223,-151.0,0.00036716,30]
[392341937,1761367843232,-151.0,0.00036716,30]
[392341938,1761367843241,-153.414668,0.00036716,30]
[392341939,1761367843251,-151.0,0.00036716,30]
[392341940,1761367843260,-151.0,0.00036716,30]
[392341941,1761367843270,-151.0,0.00036716,30]
[392341942,1761367843279,-151.0,0.00036716,30]
[392341943,1761367843290,-151.0,0.00036716,30]
[392341944,1761367843300,-151.0,0.00036716,30]
[392341945,1761367843309,-151.0,0.00036716,30]
[392341946,1761367843318,-151.0,0.00036716,30]
[392341947,1761367843327,-155.291273,0.00036716,30]
[392341948,1761367843336,-155.384356,0.00036716,30]
[392341949,1761367843346,-152.803122,0.00036716,30]
[392341950,1761367843355,-151.0,0.00036716,30]
[392341951,1761367843364,-151.0,0.00036716,30]
[392341952,1761367843373,-151.0,0.00036716,30]
[392341953,1761367843383,-151.0,0.00036716,30]
[392341954,1761367843392,-151.0,0.00036716,30]
[392341955,1761367843401,-152.394478,0.00036716,30]
[392341956,1761367843410,-151.0,0.00036716,30]
[392341957,1761367843419,-152.170934,0.00036716,30]
[392341958,1761367843429,-155.225836,0.00036716,30]
[392341959,1761367843438,-151.0,0.00036716,30]
[392341960,1761367843447,-151.0,0.00036716,30]
[392341961,1761367843457,-151.0,0.00036716,30]
[392341962,1761367843466,-151.0,0.00036716,30]
[392341963,1761367843476,-151.0,0.00036716,30]
[392341964,1761367843485,-152.151388,0.00036716,30]
[392341965,1761367843494,-153.45997,0.00036716,30]
[392341966,1761367843504,-151.0,0.00036716,30]
[392341967,1761367843513,-151.0,0.00036716,30]
[392341968,1761367843522,-151.0,0.00036716,30]
[392341969,1761367843531,-151.0,0.00036716,30]
[392341970,1761367843540,-151.0,0.00036716,30]
[392341971,1761367843549,-151.0,0.00036716,30]
[392341972,1761367843558,-151.0,0.00036716,30]
[392341973,1761367843568,-151.0,0.00036716,30]
[392341974,1761367843578,-151.0,0.00036716,30]
[392341975,1761367843587,-151.0,0.00036716,30]
[392341976,1761367843597,-181.688731,0.00036716,30]
[392341977,1761367843606,-151.0,0.00036716,30]
[392341978,1761367843615,-151.914063,0.00036716,30]
[392341979,1761367843624,-153.961455,0.00036716,30]
[392341980,1761367843633,-151.744043,0.00036716,30]
[392341981,1761367843643,-151.0,0.00036716,30]
[392341982,1761367843652,-151.0,0.00036716,30]
[392341983,1761367843661,-151.0,0.00036716,30]
[392341984,1761367843670,-209.479651,0.00036716,30]
[392341985,1761367843679,-151.0,0.00036716,30]
[392341986,1761367843688,-151.0,0.00036716,30]
[392341987,1761367843697,-151.0,0.00036716,30]
[392341988,1761367843707,-153.881134,0.00036716,30]
[392341989,1761367843716,-151.0,0.00036716,30]
[392341990,1761367843725,-151.0,0.00036716,30]
[392341991,1761367843737,-233.96096714,0.00036728,120]
[392341992,1761367843746,-572.0,0.00036784,2]
[392341993,1761367843755,-3414.0,0.00036784,2]
[392341994,1761367843764,-819.0,0.00036784,2]
[392341995,1761367843773,-2054.0,0.00036784,2]
[392341996,1761367843783,-1695.381,0.00036784,2]
[392341997,1761367843793,-1312.0,0.00036784,2]
[392341998,1761367843804,-606.0,0.00036784,2]
[392341999,1761367843813,-821.0,0.00036784,2]
[392342000,1761367843824,-1270.0,0.00036784,2]
[392342001,1761367843835,-3488.0,0.00036784,2]
[392342002,1761367843846,-155.379,0.00036784,2]
[392342003,1761367843856,-150.328,0.00036784,2]
[392342004,1761367843865,-150.387,0.00036784,2]
[392342005,1761367843875,-150.0,0.00036784,2]
[392342006,1761367843884,-6458.0,0.00036784,2]
[392342007,1761367843893,-150.311,0.00036784,2]
[392342008,1761367843902,-558.0,0.00036784,2]
[392342009,1761367843911,-6541.0,0.00036784,2]
[392342010,1761367843921,-1585.18701861,0.000368,2]
[392342011,1761367843930,-28553.45,0.000368,14]
[392342012,1761367843940,-500.0,0.00036818,30]
[392342013,1761367843953,-3100.0,0.000369,13]
[392342014,1761367843965,-151.16919267,0.00036922,15]
[392342015,1761367843975,-2000.0,0.00036951,2]
[392342016,1761367843984,-822.0407102,0.00036982,2]
[392342017,1761367843994,-999.0,0.00036986,120]
[392342018,1761367844004,-1000.0,0.0003699,2]
[392342019,1761367844013,-476.4830027,0.00037,7]
[392342020,1761367844024,-292.54214066,0.00037,120]
[392342021,1761367844035,-505.47572506,0.0003707,30]
[392342022,1761367844045,-500.0,0.00037092,30]
[392342023,1761367844057,-516.6200901,0.00037111,30]
[392342024,1761367844069,-1425.0,0.00037148,2]
[392342025,1761367844080,-696.08,0.00037205,2]
[392342026,1761367844089,-3794.0,0.0003721,2]
[392342027,1761367844098,-822.0407102,0.00037215,2]
[392342028,1761367844107,-500.0,0.00037216,30]
[392342029,1761367844116,-475.83552156,0.00037221,2]
[392342030,1761367844125,-500.0,0.0003726,7]
[392342031,1761367844135,-500.0,0.0003726,7]
[392342032,1761367844144,-1100.0,0.0003726,7]
[392342033,1761367844154,-1000.0,0.00037264,2]
[392342034,1761367844163,-664.23510011,0.00037384,7]
[392342035,1761367844172,-287.42695029,0.00037389,2]
[392342036,1761367844181,-822.0407102,0.00037432,2]
[392342037,1761367844190,-1092.0,0.00037479,5]
[392342038,1761367844200,-150.0,0.00037494,7]
[392342039,1761367844209,-688.23,0.000375,14]
[392342040,1761367844491,-2151.19487,0.000375,2]
[392342041,1761367844501,-2151.19486,0.000375,2]
[392342042,1761367844511,-2151.19487,0.000375,2]
[392342043,1761367844520,-2151.19486,0.000375,2]
[392342044,1761367844530,-165.821,0.00037501,7]
[392342045,1761367844541,-165.821,0.00037501,7]
[392342046,1761367844551,-165.821,0.00037501,7]
[392342047,1761367844563,-165.821,0.00037501,7]
[392342048,1761367844572,-165.821,0.00037501,7]
[392342049,1761367844581,-43998.81856181,0.0003751,2]
[392342050,1761367844590,-1473.92644102,0.0003751,2]
[392342051,1761367844599,-1000.0,0.00037538,2]
[392342052,1761367844612,-1425.0,0.00037565,2]
[392342053,1761367844622,-6226.8408,0.00037574,2]
[392342054,1761367844632,-1000.0,0.00037574,120]
[392342055,1761367844641,-1425.0,0.00037592,2]
[392342056,1761367844651,-920.17,0.000376,30]
[392342057,1761367844660,-28553.45,0.000376,14]
[392342058,1761367844671,-518.48352839,0.00037641,30]
[392342059,1761367844682,-1000.0,0.00037674,2]
[392342060,1761367844691,-153.77949303,0.00037719,2]
[392342061,1761367844701,-150.0,0.00037719,2]
[392342062,1761367844711,-160.94743088,0.00037719,2]
[392342063,1761367844720,-500.0,0.00037719,2]
[392342064,1761367844730,-1425.0,0.00037755,2]
[392342065,1761367844739,-822.04071024,0.0003776,2]
[392342066,1761367844748,-500.0,0.00037774,2]
[392342067,1761367844757,-33180.8735,0.0003778,2]
[392342068,1761367844769,-204.34227883,0.00037789,2]
[392342069,1761367844779,-1000.0,0.00037799,2]
[392342070,1761367844789,-1000.0,0.00037812,2]
[392342071,1761367844798,-1000.0,0.0003782,7]
[392342072,1761367844808,-500.0,0.00037829,2]
[392342073,1761367844819,-506.51421574,0.00037842,2]
[392342074,1761367844831,-1775.09,0.0003786,120]
[392342075,1761367844843,-7371.62,0.00037873,2]
[392342076,1761367844853,-14543.41,0.00037873,2]
[392342077,1761367844863,-1278.38,0.00037873,2]
[392342078,1761367844874,-151.0,0.00037877,14]
[392342079,1761367844885,-2710.56087694,0.00037879,2]
[392342080,1761367844895,-151.0,0.0003788,30]
[392342081,1761367844905,-151.0,0.0003788,30]
[392342082,1761367844914,-151.0,0.0003788,30]
[392342083,1761367844923,-151.0,0.0003788,30]
[392342084,1761367844932,-159.691854,0.0003788,30]
[392342085,1761367844942,-154.809523,0.0003788,30]
[392342086,1761367844953,-151.0,0.0003788,30]
[392342087,1761367844965,-160.93383,0.0003788,30]
[392342088,1761367844974,-151.0,0.0003788,15]
[392342089,1761367844984,-151.0,0.0003788,30]
[392342090,1761367844993,-227.231836,0.0003788,30]
[392342091,1761367845003,-151.0,0.0003788,30]
[392342092,1761367845013,-151.0,0.0003788,30]
[392342093,1761367845022,-151.0,0.0003788,30]
[392342094,1761367845033,-174.409562,0.0003788,30]
[392342095,1761367845043,-151.0,0.0003788,30]
[392342096,1761367845052,-151.0,0.0003788,30]
[392342097,1761367845063,-151.0,0.0003788,30]
[392342098,1761367845074,-151.0,0.0003788,30]
[392342099,1761367845084,-151.0,0.0003788,30]
[392342100,1761367845095,-151.0,0.0003788,30]
[392342101,1761367845104,-152.567053,0.0003788,30]
[392342102,1761367845113,-151.0,0.0003788,30]
[392342103,1761367845122,-151.0,0.0003788,30]
[392342104,1761367845131,-216.835425,0.0003788,30]
[392342105,1761367845141,-151.0,0.0003788,30]
[392342106,1761367845150,-151.0,0.0003788,30]
[392342107,1761367845159,-151.0,0.0003788,30]
[392342108,1761367845170,-153.146631,0.0003788,30]
[392342109,1761367845180,-153.100218,0.0003788,30]
[392342110,1761367845191,-151.0,0.0003788,30]
[392342111,1761367845202,-286.00418,0.0003788,30]
[392342112,1761367845211,-151.0,0.0003788,30]
[392342113,1761367845221,-151.0,0.0003788,30]
[392342114,1761367845230,-151.0,0.0003788,30]
[392342115,1761367845239,-151.0,0.0003788,30]
[392342116,1761367845249,-151.0,0.0003788,30]
[392342117,1761367845259,-151.0,0.0003788,30]
[392342118,1761367845268,-2151.19486,0.0003788,2]
[392342119,1761367845277,-2151.19487,0.0003788,2]
[392342120,1761367845287,-163.771548,0.0003788,30]
[392342121,1761367845296,-151.0,0.0003788,30]
[392342122,1761367845305,-151.0,0.0003788,30]
[392342123,1761367845315,-151.0,0.0003788,30]
[392342124,1761367845324,-301.588517,0.0003788,30]
[392342125,1761367845334,-167.878974,0.0003788,30]
[392342126,1761367845343,-151.0,0.0003788,30]
[392342127,1761367845352,-151.0,0.0003788,30]
[392342128,1761367845361,-151.0,0.0003788,30]
[392342129,1761367845371,-151.0,0.0003788,30]
[392342130,1761367845380,-151.0,0.0003788,30]
[392342131,1761367845389,-151.0,0.0003788,30]
[392342132,1761367845398,-151.0,0.0003788,30]
[392342133,1761367845407,-151.0,0.0003788,30]
[392342134,1761367845417,-153.329339,0.0003788,30]
[392342135,1761367845426,-185.605529,0.0003788,30]
[392342136,1761367845436,-151.0,0.0003788,30]
[392342137,1761367845444,-151.0,0.0003788,30]
[392342138,1761367845454,-192974.5116,0.0003788,2]
[392342139,1761367845463,-500.0,0.00037883,2]
[392342140,1761367845473,-3793.0,0.00037887,120]
[392342141,1761367845482,-5000.0,0.000379,2]
[392342142,1761367845491,-3900.0,0.000379,13]
[392342143,1761367845500,-2974.37935204,0.000379,2]
[392342144,1761367845509,-207.4586233,0.000379,2]
[392342145,1761367845518,-613.44285898,0.000379,2]
[392342146,1761367845528,-500.0,0.00037904,7]
[392342147,1761367845539,-500.0,0.00037904,7]
[392342148,1761367845549,-500.0,0.00037904,7]
[392342149,1761367845559,-500.0,0.00037904,7]
[392342150,1761367845570,-500.0,0.00037904,7]
[392342151,1761367845580,-500.0,0.00037904,7]
[392342152,1761367845590,-500.0,0.00037904,7]
[392342153,1761367845601,-500.0,0.00037904,7]
[392342154,1761367845610,-513.53,0.00037904,7]
[392342155,1761367845619,-500.0,0.00037904,7]
[392342156,1761367845632,-500.0,0.00037904,7]
[392342157,1761367845641,-500.0,0.00037904,7]
[392342158,1761367845650,-376.33,0.00037904,7]
[392342160,1761367845659,-1000.0,0.00037919,7]
[392342162,1761367845670,-500.0,0.00037938,2]
[392342163,1761367845681,-951.15087613,0.00037959,30]
[392342165,1761367845692,-200.0,0.00037972,10]
[392342167,1761367845701,-10747.78456055,0.0003798,2]
[392342169,1761367845713,-1000.0,0.00037987,7]
[392342171,1761367845722,-118484.36020975,0.0003799,2]
[392342190,1761367846335,-344.75699023,0.00033676,7]
[392342191,1761367846345,-353.16103397,0.00033676,7]
[392342192,1761367846354,-500.0,0.00033676,7]
[392342193,1761367846363,-482.90778965,0.00033676,7]
[392342194,1761367846374,-17.09221035,0.00033676,7]
[392342195,1761367846383,-256.73341287,0.00033676,7]
[392342196,1761367846790,-4.4055839,0.00033676,7]
[392342197,1761367846801,-151.0,0.00036716,30]
[392342198,1761367846814,-151.0,0.00036716,30]
[392342199,1761367846824,-250.0,0.00036784,2]
[392342200,1761367846835,-150.0,0.00037494,7]
[392342201,1761367846844,-151.0,0.0003788,30]
[392342202,1761367846854,-151.0,0.0003788,30]
[392342203,1761367846866,-169.30441607,0.0003799,2]
[392342204,1761367930489,173.98,0.00013699,2]
[392342206,1761368221594,500.0,0.00036718,30]
[392342208,1761368892340,-182.09074188,0.00020187,2]
[392342209,1761368892374,-173.98,0.00020187,2]
[392342210,1761368892407,-2500.0,0.00022206,2]
[392342211,1761368892446,-182.09074188,0.00023216,7]
[392342212,1761368892459,-173.98,0.00023216,7]
[392342213,1761368892470,-133.78752036,0.00023216,7]
[392342214,1761368892479,-2000.0,0.000255,2]
[392342215,1761368892489,-173.98,0.00026676,2]
[392342216,1761368892498,-192.23247964,0.00026985,2]
[392342217,1761368892516,-57.76752036,0.00026985,2]
[392342218,1761368892525,-230.09099588,0.000292,2]
[392342229,1761369032017,-244.92913112,0.00025714,2]
[392342230,1761369032026,-20.94079412,0.000292,2]
[392342231,1761369032037,-1748.96821,0.000292,2]
[392342232,1761369032046,-152.0,0.00032672,3]